{"text_format":"1","workbook":"xlsx","n_sheets":1,"sheets":["Regnskab Q4 2023"],"not_rendered":{"charts":0,"images":0,"macros":1,"external_links":0,"defined_names":1,"comments":0,"pivot_tables":0},"unopened":[],"bounds":{"document_bytes":16777216,"sheet_cells":100000,"rows_first":2000,"rows_last":500,"rows_between":2000,"halvings":0,"cell_chars":16384,"cell_head_chars":4096},"cells_cut":0,"cells_raw":0,"read":"whole","date_system":"1900"}

{"sheet":"Regnskab Q4 2023","index":0,"n_rows":53,"n_cols":6,"rows_kept":53,"cut":false,"hidden":false,"merged":[]}
["Produkt ID","Produktnavn","Kategori","Pris","Antal solgt","Profit"]
[101,"Lego Classic Building Bricks","Byggeklodser",1199,500,{"$f":"data[[#This Row],[Pris]]*data[[#This Row],[Antal solgt]]","v":599500}]
[102,"Barbie Dreamhouse","Dukkehuse",1999,200,{"$f":"data[[#This Row],[Pris]]*data[[#This Row],[Antal solgt]]","v":399800}]
[103,"Nerf N-Strike Elite Blaster","Nerf",299,800,{"$f":"data[[#This Row],[Pris]]*data[[#This Row],[Antal solgt]]","v":239200}]
[104,"Hot Wheels Ultimate Garage","Biler og køretøjer",449,350,{"$f":"data[[#This Row],[Pris]]*data[[#This Row],[Antal solgt]]","v":157150}]
[105,"Paw Patrol Adventure Bay Playset","Paw Patrol",199,300,{"$f":"data[[#This Row],[Pris]]*data[[#This Row],[Antal solgt]]","v":59700}]
[106,"Frozen II Elsa Doll","Disney-figurer",299,600,{"$f":"data[[#This Row],[Pris]]*data[[#This Row],[Antal solgt]]","v":179400}]
[107,"Transformers Optimus Prime Action Figure","Action-figurer",99,400,{"$f":"data[[#This Row],[Pris]]*data[[#This Row],[Antal solgt]]","v":39600}]
[108,"Monopoly Classic Board Game","Brætspil",249,700,{"$f":"data[[#This Row],[Pris]]*data[[#This Row],[Antal solgt]]","v":174300}]
[109,"Teddy Bear Plush Toy","Bamser",149,1000,{"$f":"data[[#This Row],[Pris]]*data[[#This Row],[Antal solgt]]","v":149000}]
[110,"Xbox Series X Game Console","Spilkonsoller",4999,150,{"$f":"data[[#This Row],[Pris]]*data[[#This Row],[Antal solgt]]","v":749850}]
[111,"LEGO Technic Excavator","Byggeklodser",1499,450,{"$f":"data[[#This Row],[Pris]]*data[[#This Row],[Antal solgt]]","v":674550}]
[112,"American Girl Doll","Legetøjsdukker",199,250,{"$f":"data[[#This Row],[Pris]]*data[[#This Row],[Antal solgt]]","v":49750}]
[113,"Nintendo Switch Lite","Spilkonsoller",1999,180,{"$f":"data[[#This Row],[Pris]]*data[[#This Row],[Antal solgt]]","v":359820}]
[114,"Fisher-Price Baby Swing","Babylegetøj",299,400,{"$f":"data[[#This Row],[Pris]]*data[[#This Row],[Antal solgt]]","v":119600}]
[115,"Harry Potter Wizard Chess Set","Brætspil",399,300,{"$f":"data[[#This Row],[Pris]]*data[[#This Row],[Antal solgt]]","v":119700}]
[116,"Marvel Avengers Action Figures","Action-figurer",199,800,{"$f":"data[[#This Row],[Pris]]*data[[#This Row],[Antal solgt]]","v":159200}]
[117,"Barbie Fashion Doll","Mode og tilbehør",299,700,{"$f":"data[[#This Row],[Pris]]*data[[#This Row],[Antal solgt]]","v":209300}]
[118,"Little Tikes Cozy Coupe","Ridetøj",499,600,{"$f":"data[[#This Row],[Pris]]*data[[#This Row],[Antal solgt]]","v":299400}]
[119,"LEGO Star Wars Millennium Falcon","Byggeklodser",2499,200,{"$f":"data[[#This Row],[Pris]]*data[[#This Row],[Antal solgt]]","v":499800}]
[120,"My Little Pony Playset","My Little Pony",399,500,{"$f":"data[[#This Row],[Pris]]*data[[#This Row],[Antal solgt]]","v":199500}]
[121,"Hot Wheels Track Builder Set","Biler og køretøjer",349,750,{"$f":"data[[#This Row],[Pris]]*data[[#This Row],[Antal solgt]]","v":261750}]
[122,"Fisher-Price Laugh & Learn Puppy","Babylegetøj",199,1200,{"$f":"data[[#This Row],[Pris]]*data[[#This Row],[Antal solgt]]","v":238800}]
[123,"Play-Doh Fun Factory","Modellervoks",149,1000,{"$f":"data[[#This Row],[Pris]]*data[[#This Row],[Antal solgt]]","v":149000}]
[124,"VTech Smart Shots Sports Center","Læring og leg",399,400,{"$f":"data[[#This Row],[Pris]]*data[[#This Row],[Antal solgt]]","v":159600}]
[125,"Pikachu Plush Toy","Pokemon",249,300,{"$f":"data[[#This Row],[Pris]]*data[[#This Row],[Antal solgt]]","v":74700}]
[126,"Uno Card Game","Brætspil",79,1500,{"$f":"data[[#This Row],[Pris]]*data[[#This Row],[Antal solgt]]","v":118500}]
[127,"Minnie Mouse Bowtique Cash Register","Læring og leg",299,250,{"$f":"data[[#This Row],[Pris]]*data[[#This Row],[Antal solgt]]","v":74750}]
[128,"LeapFrog LeapPad Learning Tablet","Læring og leg",799,200,{"$f":"data[[#This Row],[Pris]]*data[[#This Row],[Antal solgt]]","v":159800}]
[129,"Hot Wheels Monster Trucks"," Biler og køretøjer",199,800,{"$f":"data[[#This Row],[Pris]]*data[[#This Row],[Antal solgt]]","v":159200}]
[130,"Fisher-Price Rock 'n Play Sleeper","Babylegetøj",599,300,{"$f":"data[[#This Row],[Pris]]*data[[#This Row],[Antal solgt]]","v":179700}]
[131,"LEGO Friends Heartlake City","Byggeklodser",699,400,{"$f":"data[[#This Row],[Pris]]*data[[#This Row],[Antal solgt]]","v":279600}]
[132,"Barbie Ken Doll","Dukker",199,600,{"$f":"data[[#This Row],[Pris]]*data[[#This Row],[Antal solgt]]","v":119400}]
[133,"Playmobil Pirate Ship","Playmobil",249,250,{"$f":"data[[#This Row],[Pris]]*data[[#This Row],[Antal solgt]]","v":62250}]
[134,"Nintendo Switch Pro Controller","Spilkonsoller",999,180,{"$f":"data[[#This Row],[Pris]]*data[[#This Row],[Antal solgt]]","v":179820}]
[135,"Polly Pocket Compact Playset","Polly Pocket",149,700,{"$f":"data[[#This Row],[Pris]]*data[[#This Row],[Antal solgt]]","v":104300}]
[136,"Baby Einstein Take Along Tunes","Babylegetøj",99,1200,{"$f":"data[[#This Row],[Pris]]*data[[#This Row],[Antal solgt]]","v":118800}]
[137,"Melissa & Doug Wooden Building Blocks","Trælegetøj",349,500,{"$f":"data[[#This Row],[Pris]]*data[[#This Row],[Antal solgt]]","v":174500}]
[138,"Transformers Bumblebee Action Figure","Action-figurer",249,450,{"$f":"data[[#This Row],[Pris]]*data[[#This Row],[Antal solgt]]","v":112050}]
[139,"Disney Princess Royal Carriage","Disney-figurer",399,350,{"$f":"data[[#This Row],[Pris]]*data[[#This Row],[Antal solgt]]","v":139650}]
[140,"L.O.L. Surprise! Dolls","L.O.L. Surprise!",129,800,{"$f":"data[[#This Row],[Pris]]*data[[#This Row],[Antal solgt]]","v":103200}]
[141,"VTech KidiZoom Camera","Læring og leg",499,300,{"$f":"data[[#This Row],[Pris]]*data[[#This Row],[Antal solgt]]","v":149700}]
[142,"Sesame Street Elmo Plush Toy","Sesame Street",199,600,{"$f":"data[[#This Row],[Pris]]*data[[#This Row],[Antal solgt]]","v":119400}]
[143,"Crayola Inspiration Art Case","Kreativt legetøj",199,700,{"$f":"data[[#This Row],[Pris]]*data[[#This Row],[Antal solgt]]","v":139300}]
[144,"Beyblade Burst Battle Set","Beyblade",399,200,{"$f":"data[[#This Row],[Pris]]*data[[#This Row],[Antal solgt]]","v":79800}]
[145,"FurReal Friends Ricky the Trick-Lovin' Pup","Interaktivt legetøj",129,150,{"$f":"data[[#This Row],[Pris]]*data[[#This Row],[Antal solgt]]","v":19350}]
[146,"LEGO City Police Station","Byggeklodser",999,250,{"$f":"data[[#This Row],[Pris]]*data[[#This Row],[Antal solgt]]","v":249750}]
[147,"Mattel Games Pictionary","Brætspil",199,400,{"$f":"data[[#This Row],[Pris]]*data[[#This Row],[Antal solgt]]","v":79600}]
[148,"PJ Masks Headquarters Playset","PJ Masks",399,300,{"$f":"data[[#This Row],[Pris]]*data[[#This Row],[Antal solgt]]","v":119700}]
[149,"Hot Wheels Criss Cross Crash Track Set","Biler og køretøjer",499,350,{"$f":"data[[#This Row],[Pris]]*data[[#This Row],[Antal solgt]]","v":174650}]
[150,"VTech Go! Go! Smart Wheels Race Car","VTech",399,1200,{"$f":"data[[#This Row],[Pris]]*data[[#This Row],[Antal solgt]]","v":478800}]
[]
[null,null,null,null,"I alt",{"$f":"SUM(data[Profit])","v":10017540}]